Workbook

Sheet BAL.MASSA
A1: BALANÇO DE MASSAS EM BASE SECA - DOSAGENS DE ADITIVOS, AGLOMERANTE E COMBUSTÍVEL SÓLIDO EM RELAÇÃO AO PESO DA MISTURA - CUSTOS E CÁLCULOS COMPLEMENTARES
C3: DADOS DE ENTRADA PARA AS PELOTAS | N3: CÁLCULOS COMPLEMENTARES DA ANÁLISE QUÍMICA DAS PELOTAS (RESULTADOS)
A4: PELOTA | E4: Análise química desejada na PELOTA % | R4: Análise química calculada da PELOTA %
A5: TIPO | C5: % Finos Pelotas | E5: SiO2 | G5: CaO | I5: MgO | J5: QO= | K5: TiO2 | N5: FeT | P5: FeO | R5: SiO2 | T5: Al2O3 | V5: CaO | X5: MgO | Z5: =T10 -> TiO2 | AB5: P | AD5: Ʃ Outros
A6: Pelota Alto Forno | B6: z = | C6: 2 | D6: sp' = | E6: 2.7 | F6: cp' = | G6: 2.43 | H6: gp' = | I6: 0.4 | J6: qp' = | K6: 0.5 | M6: FeT = | N6: =0.7*(100-P6-R6-T6-V6-X6-Z6-(AB6/0.44)-AD6)+P6*0.77 -> 65.2370356 | O6: f2+ = | P6: 0.15 | Q6: sp = | R6: =(J24*D11+L12*J25+L13*J26+L14*J27+L15*J28+L16*J16*J29/100)/C34 -> 2.7 | S6: ap = | T6: =(N11*D11+N12*J25+N13*J26+N14*J27+N15*J28+N16*J16*J29/100)/C34 -> 0.524448165 | U6: cp = | V6: =(P11*D11+P12*J25+P13*J26+P14*J27+P15*J28+P16*J16*J29/100)/C34 -> 2.43 | W6: gp = | X6: =(R11*D11+R12*J25+R13*J26+R14*J27+R15*J28+R16*J16*J29/100)/C34 -> 0.4 | Y6: qp = | Z6: =(T11*D11+T12*J25+T13*J26+T14*J27+T15*J28+T16*J16*J29/100)/C34 -> 0.5 | AA6: pp = | AB6: =(V11*D11+V12*J25+V13*J26+V14*J27+V15*J28+V16*J16*J29/100)/C34 -> 0.02850614224 | AC6: rp = | AD6: 0.2
A8: COMPONENTE | C8: DOSAGEM A | J8: DADOS DE ENTRADA DAS ANÁLISES QUÍMICAS DO MINÉRIO DE FERRO E ADITIVOS
A9: DA MISTURA | B9: NOME | C9: MISTURA | L9: ANÁLISE QUÍMICA %
E10: Carbono fixo | G10: Matéria Volátil | I10: Cinzas | K10: SiO2 | M10: Al2O3 | O10: CaO | Q10: MgO | S10: QO = | T10: =K5 -> TiO2 | U10: P | X10: PF | Y10: UMIDADE
A11: MINÉRIO | B11: Pellet Feed IT | C11: (kg-t-etc ) M = | D11: 100 | E11: - | G11: - | I11: - | K11: sm = | L11: - | M11: am = | N11: 0.3 | O11: cm = | P11: 0.05 | Q11: gm = | R11: 0.05 | S11: qm = | T11: 0.08 | U11: pm = | V11: 0.025 | W11: fm = | X11: 0.35 | Y11: um = | Z11: 8
A12: DOSADOR CaO | B12: Calc.Calcítico | C12: - | D12: - | E12: - | G12: - | I12: - | K12: sc = | L12: 2 | M12: ac = | N12: 0.3 | O12: cc = | P12: 51 | Q12: gc = | R12: 1 | S12: qc = | T12: 0.01 | U12: pc = | V12: 0.06 | W12: fc = | X12: 44 | Y12: uc = | Z12: 6
A13: DOSASOR MgO | B13: Calc. Dolomítico | C13: - | D13: - | E13: - | G13: - | I13: - | K13: sg = | L13: 2 | M13: ag = | N13: 1 | O13: cg = | P13: 38 | Q13: gg = | R13: 15 | S13: qg = | T13: 0.01 | U13: pg = | V13: 0.07 | W13: fg = | X13: 44 | Y13: ug = | Z13: 7
A14: DOSADOR QO | B14: Min. Titanífero | C14: - | D14: - | E14: - | G14: - | I14: - | K14: sq = | L14: 5 | M14: aq = | N14: 8 | O14: cq = | P14: 2 | Q14: gq = | R14: 1 | S14: qq = | T14: 70 | U14: pq = | V14: 0.09 | W14: fq = | X14: 10 | Y14: uq = | Z14: 9
A15: AGLOMERANTE | B15: Bentonita | C15: (%) x = | D15: 0.5 | E15: - | G15: - | I15: - | K15: sa = | L15: 60 | M15: aa = | N15: 18 | O15: ca = | P15: 1 | Q15: ga = | R15: 1 | S15: qa = | T15: 0.06 | U15: pb = | V15: 0.09 | W15: fa = | X15: 5 | Y15: ua = | Z15: 10
A16: COMBUSTÍVEL | B16: Antracito | C16: (%) y = | D16: 1.1 | E16: cfix = | F16: 80 | G16: MV = | H16: 5 | I16: cz = | J16: 15 | K16: ss(*) = | L16: 45 | M16: as(*) = | N16: 30 | O16: cs(*) = | P16: 2 | Q16: gs(*) = | R16: 1 | S16: qs(*) = | T16: 0.07 | U16: pa (*)= | V16: 0.07 | Y16: us = | Z16: 11
C17: y - Dosagem de Cfix | K17: (*) | L17: Análises das cinzas do combustível sólido
I20: RESULTADOS E CÁLCULOS COMPLEMENTARES
A22: RESULTADOS | I22: RESULTADOS / MISTURA | L22: CONSUMOS | S22: MISTURAS REFERENCIADAS EM % | X22: RENDIMENTO EM MASSA %
G23: COMPONENTE | J23: Base Seca | K23: Base Úmida | L23: Kg / t pelota útil | O23: SOLVER | S23: COMPONENTE | U23: BASE | V23: BASE | X23: (BASE SECA)
A24: Teor de Sílica do Minério de Ferro | E24: % | G24: =B11 -> Pellet Feed IT | I24: sm = | J24: 2.243919859 | K24: - | L24: Base Seca | M24: Base Úmida | N24: EQ1 | O24: =D11*J24+L12*J25+L13*J26+L14*J27+L15*J28+(J16*L16/100)*J29-((100*E6+C6*E6)/100)*J30 -> -8.526512829e-13 | P24: EQ1' | Q24: =0 -> 0 | S24: DA MISTURA | U24: SECA | V24: ÚMIDA | Y24: =100*J30/J32 -> 94.35586475
A25: Peso do dosador de CaO para produzir o peso P de pelotas | E25: kg-t-etc | G25: Calc.Calcítico | I25: C = | J25: 3.222992201 | K25: =(100*J25)/(100-Z12) -> 3.428715107 | L25: =J25*1000/C32 -> 31.6258781 | M25: =100*L25/(100-Z12) -> 33.64455117 | N25: EQ2 | O25: =N38*J25+N39*J26+N40*J27+N41*J28+(J16*N42/100)*J29-((100*G6+C6*G6)/100)*J30 -> -5 | P25: EQ2' | Q25: =-D11*N37 -> -5 | S25: =B12 -> Calc.Calcítico | U25: =100*J25/J32 -> 2.984087077 | V25: =100*K25/K32 -> 2.921205564
A26: Peso do dosador de MgO para produzir o peso P de pelotas | E26: kg-t-etc | G26: Calc. Dolomítico | I26: G = | J26: 2.131115439 | K26: =(100*J26)/(100-Z13) -> 2.291521977 | L26: =J26*1000/C32 -> 20.91174688 | M26: =100*L26/(100-Z13) -> 22.48574933 | N26: EQ3 | O26: =O38*J25+O39*J26+O40*J27+O41*J28+(J16*O42/100)*J29-((100*I6+C6*I6)/100)*J30 -> -5 | P26: EQ3' | Q26: =-D11*O37 -> -5 | S26: =B13 -> Calc. Dolomítico | U26: =100*J26/J32 -> 1.97314596 | V26: =100*K26/K32 -> 1.95233682 | Y26: (BASE ÚMIDA)
A27: Peso do dosador de QO para produzir o peso P de pelotas | E27: kg-t-etc | G27: Min. Titanífero | I27: Q = | J27: 0.6267506721 | K27: =(100*J27)/(100-Z14) -> 0.6887370023 | L27: =J27*1000/C32 -> 6.150042918 | M27: =100*L27/(100-Z14) -> 6.758288921 | N27: EQ4 | O27: =P38*J25+P39*J26+P40*J27+P41*J28+(J16*P42/100)*J29-((100*K6+C6*K6)/100)*J30 -> -8 | P27: EQ4' | Q27: =-D11*P37 -> -8 | S27: =B14 -> Min. Titanífero | U27: =100*J27/J32 -> 0.5802926178 | V27: =100*K27/K32 -> 0.5867919324 | Y27: =100*J30/K32 -> 86.82551742
A28: Peso de Aglomerante para produzir o peso P de pelotas | E28: kg-t-etc | G28: Bentonita | I28: A = | J28: 0.5400298513 | K28: =(100*J28)/(100-Z15) -> 0.6000331681 | L28: =J28*1000/C32 -> 5.299087676 | M28: =100*L28/(100-Z15) -> 5.887875195 | N28: EQ5 | O28: =D15*J25+D15*J26+D15*J27+(D15-100)*J28+D15*J29 -> -50 | P28: EQ5' | Q28: =-D11*D15 -> -50 | S28: =B15 -> Bentonita | U28: =100*J28/J32 -> 0.5 | V28: =100*K28/K32 -> 0.5112178103
A29: Peso de Combustível sólido para produzir o peso P pelotas | E29: kg-t-etc | G29: Antracito | I29: S = | J29: 1.485082091 | K29: =(100*J29)/(100-Z16) -> 1.668631563 | L29: =J29*1000/C32 -> 14.57249111 | M29: =100*L29/(100-Z16) -> 16.37358551 | N29: EQ6 | O29: =D16*J25+D16*J26+D16*J27+D16*J28+(D16-F16)*J29 -> -110 | P29: EQ6' | Q29: =-D11*D16 -> -110 | S29: =B16 -> Antracito | U29: =100*J29/J32 -> 1.375 | V29: =100*K29/K32 -> 1.421645034 | X29: Referência: Peso líquido das
A30: Peso Líquido de pelotas produzidas (exclusos finos - z%) | E30: kg-t-etc | I30: P = | J30: 101.9099672 | K30: - | L30: - | M30: - | N30: EQ7 | O30: =(100-X12)*J25+(100-X13)*J26+(100-X14)*J27+(100-X15)*J28+J16*J29-(100+C6)*J30 -> -9965 | P30: EQ7' | Q30: =-D11*(100-X11) -> -9965 | S30: =B11 -> Pellet Feed IT | U30: =100*J31/J32 -> 92.58747435 | V30: =100*K31/K32 -> 92.60680284 | X30: pelotas queimadas, exclusos os
H31: Peso Minério = | J31: =D11 -> 100 | K31: =(100*J31)/(100-Z11) -> 108.6956522 | L31: =J31*1000/C32 -> 981.2582884 | M31: =100*L31/(100-Z11) -> 1066.585096 | S31: Total % | U31: =SUM(U25:U30) -> 100 | V31: =SUM(V25:V30) -> 100 | X31: finos de peneiramento (z %)
A32: Peso líquido pelotas - útil sem finos (P) | C32: =J30 -> 101.9099672 | D32: kg-t-etc | H32: Peso Mistura = | J32: =D11+J25+J26+J27+J28+J29 -> 108.0059703 | K32: =K25+K26+K27+K28+K29+K31 -> 117.373291 | L32: =SUM(L25:L31) -> 1059.817535 | M32: =SUM(M25:M31) -> 1151.735146 | N32: Equações para o SOLVER!
A33: Peso de finos produzidos (Pf) | C33: =(J30*C6)/100 -> 2.038199344 | D33: kg-t-etc | N33: Alerta - Não Altere! | S33: PREÇOS DAS MATÉRIAS PRIMAS | X33: CUSTO VARIÁVEL UNITÁRIO DA MISTURA (base pelota útil)
A34: Peso Total Pelotas + finos (P') | C34: =J30+C33 -> 103.9481666 | D34: kg-t-etc | S34: COMPONENTE | U34: PREÇO BASE SECA | X34: CONDIÇÃO | AC34: ($$/kg-t-etc)
A35: Peso de Minério / Peso de Pelota Útil | C35: =J31/C32 -> 0.9812582884 | D35: - | N35: RESTRIÇÕES SOLVER | U35: $$ / (kg-t-etc)
N36: Ca | O36: Mg | P36: Ti | S36: =B11 -> Pellet Feed IT | U36: wm = | V36: 60 | X36: Apenas dos aditivos ao Minério (wm=wpf=0) | AC36: =(J25*V37+J26*V38+J27*V39+J28*V40+J29*V41)/C32 -> 4.78358192
N37: =IF(G6=0,0,P11) -> 0.05 | O37: =IF(I6=0,0,R11) -> 0.05 | P37: =IF(K6=0,0,T11) -> 0.08 | S37: Calc.Calcítico | U37: wc = | V37: 35 | X37: Com Minério e Crédito Finos | AC37: =(V36*D11+J25*V37+J26*V38+J27*V39+J28*V40+J29*V41-V42*C33)/C32 -> 63.05907923
N38: =IF(G6=0,0,P12) -> 51 | O38: =IF(I6=0,0,R12) -> 1 | P38: =IF(K6=0,0,T12) -> 0.01 | S38: Calc. Dolomítico | U38: wg = | V38: 35 | X38: Com Minério sem Crédito Finos (wpf)=0) | AC38: =(V36*D11+J25*V37+J26*V38+J27*V39+J28*V40+J29*V41)/C32 -> 63.65907923
N39: =IF(G6=0,0,P13) -> 38 | O39: =IF(I6=0,0,R13) -> 15 | P39: =IF(K6=0,0,T13) -> 0.01 | S39: Min. Titanífero | U39: wq = | V39: 20
N40: =IF(G6=0,0,P14) -> 2 | O40: =IF(I6=0,0,R14) -> 1 | P40: =IF(K6=0,0,T14) -> 70 | S40: Bentonita | U40: wa = | V40: 120
N41: =IF(G6=0,0,P15) -> 1 | O41: =IF(I6=0,0,R15) -> 1 | P41: =IF(K6=0,0,T15) -> 0.06 | S41: Antracito | U41: ws = | V41: 150 | X41: * Os preços de aquisição, venda e ou transferência devem
N42: =IF(G6=0,0,P16) -> 2 | O42: =IF(I6=0,0,R16) -> 1 | P42: =IF(K6=0,0,T16) -> 0.07 | S42: Finos de Pelotas | U42: wpf = | V42: 30 | X42: ser em base seca, C&F ou FOB usina de pelotização.
X43: O preço dos finos de pelotas refere-se ao preço de venda.
A44: OBS: 1) Só altere as células de entrada de dados destacadas em amarelo. Elas referem-se à entrada de dados conhecidos, desejados ou estimados. Após a entrada dos dados, clique no botão RESOLVER, no canto superior, à direita.
A45: 2) Não altere as demais células, de outras cores. Elas contêm fórmulas para cálculos diversos. Em hipótese alguma podem ser deletadas.
A46: 3) Relativamente aos dados de entrada, quando não se quiser dosar à pelota CaO, MgO ou QO, deve-se entrar com o valor 0 (zero) na célula correspondente, destacada no campo "Analise Química Desejada na Pelota %".
A47: 4) No estudo de custos de misturas, viabilidade de matérias primas, otimização de processos, etc, é importante verificar como os materiais são contabilizados em termos de custos/preços. Há matérias primas que são em base úmida.
A48: 5) Todas as variáveis estão descritas e caracterizadas no capítulo 6 do livro correspondente.
A49: 6) O SOLVER sempre encontrará uma solução para o problema, a não ser que os dados de entrada sejam incompatíveis.
A50: 7) O solver dever ser operado na aba dados, função Solver indicada no topo da planilha, à direita. O método de solução deve ser o LP Simplex. Dai, após a entrada dos dados é só clicar a tecla resolver. Não é necessário dizer
A51: que nenhuma alteração pode ser feita na planilha do solver.
A52: 8) O teor de umidade das matérias primas deve ser considerado, conforme aquele da aquisição ou de recebimento na usina de pelotização. Não é o teor de umidade, no misturador e/ou pelotamento.
A53: 9) Para manter a linearidade do SOLVER, na busca de uma solução para o sistema de equações do balanço de massas, o valor do peso de minério de ferro M deve estar no intervalo: " 10 < = M <= 100.000 "
